bitfinex/quotes_SOLUSD_20251126
["timestamp","ask_amount","ask_price","bid_price","bid_amount"]
[1764120685186,103.0,139.79,139.76,0.68]
[1764120686213,103.0,139.79,139.75,25.04472271]
[1764120686396,103.5,139.79,139.75,7.15563506]
[1764120686918,103.5,139.79,139.75,7.83563506]
[1764120687299,0.5,139.78,139.75,7.15563506]
[1764120687597,0.5,139.78,139.73,7.1561669]
[1764120688189,0.5,139.78,139.72,0.68]
[1764120688423,3.18,139.77,139.72,0.68]
[1764120688821,0.5,139.76,139.72,7.83714108]
[1764120689323,0.5,139.76,139.72,7.15714108]
[1764120689492,0.5,139.76,139.72,7.83714108]
[1764120689694,3.18,139.77,139.72,7.15714108]
[1764120690192,3.68,139.77,139.72,7.83714108]
[1764120691209,3.68,139.77,139.73,0.68]
[1764120693617,3.68,139.77,139.74,7.15614713]
[1764120694199,103.0,139.79,139.75,0.68]
[1764120694498,3.18,139.78,139.75,0.68]
[1764120694831,103.0,139.79,139.75,0.68]
[1764120695135,0.5,139.88,139.77,16.308864]
[1764120695344,20.94108253,139.93,139.79,16.308864]
[1764120695502,0.5,139.9,139.8,25.03576537]
[1764120695808,16.808864,139.9,139.8,25.71576537]
[1764120696008,3.18,139.89,139.81,0.68]
[1764120696228,3.68,139.89,139.81,0.68]
[1764120696525,0.5,139.88,139.81,0.68]
[1764120697221,16.308864,139.85,139.78,7.83409929]
[1764120697410,3.18,139.84,139.78,7.83409929]
[1764120697604,0.5,139.83,139.78,0.68]
[1764120697822,0.5,139.83,139.73,44.59068372]
[1764120697823,0.5,139.83,139.74,0.68]
[1764120698145,16.308864,139.81,139.71,7.83768377]
[1764120698438,16.308864,139.79,139.72,0.68]
[1764120698807,0.5,139.78,139.72,0.68]
[1764120699614,7.65453798,139.78,139.72,7.83708087]
[1764120700934,0.5,139.78,139.72,0.68]
[1764120701542,7.65410067,139.78,139.72,0.68]
[1764120702322,0.5,139.78,139.72,0.68]
[1764120702533,16.308864,139.79,139.72,0.68]
[1764120702709,16.808864,139.79,139.72,0.68]
[1764120702909,16.808864,139.79,139.73,7.15665927]
[1764120703118,0.5,139.78,139.73,7.15665927]
[1764120703323,0.5,139.78,139.73,7.83665927]
[1764120703526,3.18,139.8,139.74,0.68]
[1764120703728,3.18,139.79,139.74,0.68]
[1764120705041,3.18,139.79,139.75,7.15563506]
[1764120705406,3.18,139.79,139.76,0.68]
[1764120706029,3.18,139.79,139.73,25.04746613]
[1764120706030,0.5,139.78,139.73,25.04746613]
[1764120706236,0.5,139.78,139.73,7.1561882]
[1764120706419,0.5,139.78,139.73,7.8361882]
[1764120707527,7.65425036,139.78,139.73,7.8361882]
[1764120707735,7.65425036,139.78,139.72,7.15699805]
[1764120707936,0.5,139.77,139.72,7.15699805]
[1764120708138,0.5,139.77,139.72,7.83699805]
[1764120708322,0.5,139.77,139.73,0.68]
[1764120709448,0.5,139.77,139.73,7.83650194]
[1764120711230,103.0,139.78,139.74,0.68]
[1764120711437,103.0,139.78,139.75,7.15563506]
[1764120711739,103.0,139.78,139.76,0.68]
[1764120714146,103.0,139.78,139.76,7.83483161]
[1764120714765,103.0,139.78,139.77,0.69]
[1764120715845,103.5,139.78,139.75,7.15545964]
[1764120716040,3.18,139.77,139.75,7.15545964]
[1764120716439,3.18,139.77,139.75,7.84545964]
[1764120716959,3.18,139.77,139.75,7.15545964]
[1764120717940,3.18,139.77,139.74,0.69]
[1764120718458,106.18,139.83,139.75,8.80994492]
[1764120718840,106.18,139.83,139.76,0.69]
[1764120720051,106.18,139.83,139.77,25.041139]
[1764120720531,106.18,139.83,139.78,0.67]
[1764120721941,106.18,139.83,139.79,7.15358752]
[1764120722141,106.18,139.83,139.8,0.67]
[1764120724038,106.18,139.83,139.81,7.15256419]
[1764120724461,3.18,139.86,139.82,0.67]
[1764120725868,17.86314989,139.96,139.82,0.67]
[1764120725869,3.74041226,139.96,139.84,16.308864]
[1764120726076,3.74041226,139.96,139.87,25.02323586]
[1764120726077,0.5,139.96,139.87,25.02323586]
[1764120726258,0.5,139.96,139.87,28.20323586]
[1764120726458,0.5,139.96,139.88,0.67]
[1764120726668,3.28,139.97,139.89,8.80994492]
[1764120726967,3.28,139.97,139.9,3.18]
[1764120727179,3.28,139.97,139.91,8.80994492]
[1764120727380,3.28,139.97,139.92,0.67]
[1764120727942,3.78,139.97,139.92,7.81662829]
[1764120728182,3.28,139.97,139.91,7.14738389]
[1764120728477,3.78,139.97,139.91,7.81738389]
[1764120728654,3.28,139.97,139.92,0.67]
[1764120729458,3.78,139.97,139.92,0.67]
[1764120729965,3.28,139.97,139.92,0.67]
[1764120730163,3.28,139.97,139.93,7.14643035]
[1764120730369,3.78,139.97,139.92,7.81678327]
[1764120730871,0.1,139.97,139.93,0.67]
[1764120732151,0.1,139.97,139.91,0.67]
[1764120732152,0.6,139.97,139.91,0.67]
[1764120732965,7.74446215,139.97,139.89,0.67]
[1764120733174,7.74446215,139.97,139.89,7.8184738]
[1764120733361,0.5,139.96,139.89,7.8184738]
[1764120734167,7.64507672,139.96,139.89,0.67]
[1764120734475,7.64507672,139.96,139.88,7.81893414]
[1764120734773,0.5,139.95,139.88,7.81893414]
[1764120735250,16.808864,139.95,139.86,0.67]
[1764120735578,0.5,139.94,139.86,0.67]
[1764120735750,3.18,139.93,139.86,7.81986767]
[1764120736071,3.18,139.93,139.86,0.67]
[1764120736275,3.68,139.93,139.87,0.67]
[1764120736760,3.18,139.92,139.87,0.67]
[1764120736957,16.308864,139.94,139.87,0.67]
[1764120737157,3.18,139.94,139.87,0.67]
[1764120737361,0.5,139.93,139.86,7.81991799]
[1764120737670,0.5,139.93,139.87,0.67]
[1764120738360,0.5,139.93,139.88,7.14898484]
[1764120738853,7.64644543,139.93,139.87,0.67]
[1764120739058,7.64644543,139.93,139.85,0.67]
[1764120739357,0.5,139.92,139.85,0.67]
[1764120740658,0.5,139.92,139.86,7.15000715]
[1764120741180,0.5,139.92,139.86,7.82000715]
[1764120741479,119.308864,139.93,139.87,0.67]
[1764120742178,103.0,139.93,139.87,0.67]
[1764120742578,0.1,139.97,139.88,25.11880892]
[1764120742777,0.1,139.97,139.89,60.7620273]
[1764120743085,0.6,139.97,139.89,25.6896583]
[1764120743382,0.6,139.97,139.9,0.67]
[1764120744272,0.6,139.97,139.89,7.1484738]
[1764120744480,0.6,139.97,139.9,0.69]
[1764120744858,110.14489854,139.96,139.87,7.83949596]
[1764120745057,119.308864,139.95,139.87,7.83949596]
[1764120745260,103.0,139.94,139.87,7.14949596]
[1764120745564,3.18,139.93,139.86,7.14994756]
[1764120745785,3.18,139.93,139.86,7.83994756]
[1764120746082,0.1,139.97,139.89,16.308864]
[1764120746271,0.1,139.97,139.9,0.69]
[1764120746859,0.1,139.97,139.91,25.01608176]
[1764120747485,0.1,139.97,139.92,0.69]
[1764120748295,0.6,139.97,139.91,7.14745193]
[1764120748658,0.6,139.97,139.9,7.83785119]
[1764120748861,110.14489854,139.96,139.88,7.83898484]
[1764120749161,110.14489854,139.96,139.89,0.69]
[1764120749365,103.5,139.96,139.89,0.69]
[1764120750863,103.5,139.96,139.9,7.14796283]
[1764120751059,103.0,139.96,139.9,25.0178699]
[1764120751373,103.0,139.96,139.91,0.69]
[1764120751560,106.18,139.96,139.91,0.69]
[1764120752361,0.5,139.95,139.9,7.14796283]
[1764120752562,0.5,139.95,139.89,0.69]
[1764120752768,0.5,139.95,139.89,7.83846256]
[1764120753363,3.68,139.96,139.9,0.69]
[1764120753888,7.24481793,139.97,139.91,16.308864]
[1764120753889,0.1,139.97,139.91,16.308864]
[1764120754270,0.1,139.97,139.92,0.69]
[1764120754779,0.5,139.96,139.89,34.1800485]
[1764120754992,3.18,139.95,139.88,7.14898484]
[1764120755289,3.18,139.95,139.89,0.69]
[1764120755658,0.1,139.97,139.89,0.69]
[1764120755963,0.1,139.97,139.9,11.98994492]
[1764120756158,0.1,139.97,139.9,28.29880892]
[1764120756391,0.1,139.97,139.91,0.69]
[1764120757200,0.1,139.97,139.92,7.1469411]
[1764120757574,0.1,139.97,139.93,0.69]
[1764120757992,3.28,139.97,139.93,0.69]
[1764120758285,3.28,139.97,139.92,25.01429387]
[1764120758286,0.5,139.96,139.92,7.1469411]
[1764120758986,0.5,139.96,139.91,7.14732423]
[1764120760203,0.5,139.96,139.91,7.83732423]
[1764120760896,3.28,139.97,139.92,0.69]
[1764120761200,3.78,139.97,139.93,7.14643035]
[1764120761392,3.78,139.97,139.92,0.69]
[1764120761587,3.28,139.97,139.91,17.86862983]
[1764120761779,0.72,139.96,139.86,25.11880892]
[1764120761983,0.72,139.96,139.86,16.308864]
[1764120762376,16.308864,139.94,139.79,8.80994492]
[1764120762569,3.18,139.93,139.81,8.80994492]
[1764120762773,3.9,139.93,139.84,16.308864]
[1764120762997,0.72,139.92,139.82,16.308864]
[1764120763188,7.86737138,139.92,139.83,25.03039404]
[1764120763683,0.72,139.91,139.84,0.69]
[1764120763881,0.72,139.91,139.82,0.69]
[1764120764081,3.18,139.91,139.83,0.69]
[1764120764701,3.18,139.91,139.84,16.308864]
[1764120765199,3.18,139.91,139.85,0.69]
[1764120765783,0.72,139.92,139.86,7.15000715]
[1764120766100,3.9,139.92,139.86,25.02502502]
[1764120766307,3.9,139.92,139.87,0.69]
[1764120766914,3.18,139.92,139.87,0.69]
[1764120767301,0.72,139.91,139.87,0.69]
[1764120767811,0.72,139.91,139.88,7.14898484]
[1764120768230,3.18,139.92,139.88,7.14898484]
[1764120768387,3.18,139.92,139.88,7.83898484]
[1764120768587,3.18,139.92,139.89,0.69]
[1764120769188,103.0,139.93,139.89,0.69]
[1764120769525,3.18,139.95,139.89,0.69]
[1764120769697,3.18,139.95,139.9,25.0178699]
[1764120770202,0.72,139.94,139.88,7.83898484]
[1764120770515,0.72,139.94,139.88,25.71144695]
[1764120771683,4.0,139.97,139.9,25.0178699]
[1764120771907,20.308864,139.97,139.9,7.14796283]
[1764120772213,20.308864,139.97,139.91,0.69]
[1764120772411,4.0,139.97,139.91,0.69]
[1764120772712,17.028864,139.96,139.9,7.14796283]
[1764120773086,0.72,139.95,139.9,7.14796283]
[1764120773287,0.72,139.95,139.87,0.72]
[1764120773701,7.14591967,139.94,139.88,7.14877273]
[1764120774023,3.18,139.93,139.88,7.14877273]
[1764120774386,3.18,139.93,139.88,7.86877273]
[1764120774387,3.89,139.93,139.88,7.86877273]
[1764120774599,0.71,139.92,139.88,7.86877273]
[1764120776933,7.85700175,139.92,139.85,7.87051841]
[1764120777109,0.71,139.91,139.85,7.87051841]
[1764120778034,0.71,139.91,139.83,16.308864]
[1764120778222,0.71,139.91,139.86,0.72]
[1764120779219,3.18,139.93,139.86,0.72]
[1764120779423,3.89,139.93,139.86,0.72]
[1764120780133,3.89,139.93,139.87,25.02323586]
[1764120780636,3.89,139.93,139.88,0.68]
[1764120781132,0.69,139.92,139.88,0.68]
[1764120782245,0.69,139.92,139.89,7.1484738]
[1764120783221,3.87,139.93,139.89,7.8284738]
[1764120783941,3.87,139.93,139.89,0.68]
[1764120784239,3.87,139.93,139.89,7.8281024]
[1764120784439,3.18,139.93,139.89,7.8281024]
[1764120784625,3.18,139.93,139.9,0.68]
[1764120785643,3.18,139.93,139.88,0.68]
[1764120785644,0.69,139.92,139.88,0.68]
[1764120786141,3.18,139.93,139.88,7.82888802]
[1764120786337,0.69,139.92,139.88,7.82888802]
[1764120786532,3.18,139.93,139.88,7.14888802]
[1764120786739,7.14598575,139.94,139.89,0.68]
[1764120786946,103.0,139.95,139.89,0.68]
[1764120787434,106.87,139.95,139.89,0.68]
[1764120787746,113.32541859,139.95,139.89,0.68]
[1764120787945,0.69,139.94,139.89,0.68]
[1764120788328,7.83617029,139.94,139.87,0.68]
[1764120788760,0.69,139.93,139.87,0.68]
[1764120789455,7.83669853,139.93,139.87,0.68]
[1764120789661,122.488864,139.95,139.88,7.14898484]
[1764120789850,106.18,139.95,139.88,7.14898484]
[1764120790048,103.0,139.95,139.89,0.68]
[1764120790352,3.18,139.96,139.89,0.68]
[1764120791243,0.1,139.97,139.91,16.308864]
[1764120791432,0.1,139.97,139.92,25.01429387]
[1764120791627,0.1,139.97,139.92,25.69429387]
[1764120791934,0.1,139.97,139.93,0.68]
[1764120792634,0.1,139.97,139.94,3.18]
[1764120792939,0.1,139.97,139.93,0.68]
[1764120793363,0.79,139.97,139.92,7.1469411]
[1764120793959,3.18,139.96,139.92,0.68]
[1764120794251,3.18,139.96,139.91,25.0159021]
[1764120794431,3.18,139.96,139.93,0.68]
[1764120794748,0.79,139.97,139.93,0.68]
[1764120794945,0.1,139.97,139.93,0.68]
[1764120795662,0.1,139.97,139.94,25.01071886]
[1764120796156,0.1,139.97,139.95,0.68]
[1764120796653,0.1,139.97,139.94,25.01071886]
[1764120796842,0.1,139.97,139.94,25.69071886]
[1764120797157,0.79,139.97,139.94,7.14591967]
[1764120797561,0.79,139.97,139.9,16.308864]
[1764120797562,0.1,139.97,139.95,0.68]
[1764120798761,0.1,139.97,139.96,7.14489854]
[1764120798953,0.1,139.97,139.96,7.82489854]
[1764120799457,0.1,140.0,139.96,64.5916376]
[1764120799664,0.1,140.0,139.97,0.68]
[1764120800970,0.1,140.0,139.98,7.14387769]
[1764120801265,37.33781363,140.07,139.98,7.14387769]
[1764120801266,109.73887839,140.08,139.98,25.00357193]
[1764120801560,110.42887839,140.08,139.99,0.68]
[1764120801755,109.73887839,140.08,139.99,0.68]
[1764120802059,109.73893516,140.08,139.99,0.68]
[1764120802455,0.69,140.07,139.99,0.68]
[1764120802658,3.87,140.07,139.99,0.68]
[1764120803372,3.18,140.07,140.0,24.99999999]
[1764120803867,3.18,140.07,140.0,25.66999999]
[1764120805071,3.18,140.07,140.0,0.67]
[1764120805267,3.18,140.07,139.99,8.80994492]
[1764120805437,3.18,140.07,139.98,25.00357193]
[1764120805642,3.18,140.07,139.98,25.67357193]
[1764120806060,3.88,140.07,139.98,25.67357193]
[1764120806260,103.3,140.06,139.98,25.67357193]
[1764120806472,102.6,140.06,139.99,9.47994492]
[1764120806639,102.6,140.06,140.0,0.67]
[1764120807040,102.6,140.06,140.01,24.9982144]
[1764120807357,102.6,140.06,140.02,0.67]
[1764120807752,0.1,140.11,140.02,0.67]
[1764120808145,3.18,140.1,140.02,0.67]
[1764120808351,3.18,140.09,140.02,0.67]
[1764120809147,3.18,140.09,140.03,24.99464399]
[1764120809758,10.31833916,140.09,140.03,24.99464399]
[1764120809947,11.01833916,140.09,140.03,24.99464399]
[1764120810148,11.01833916,140.09,140.03,7.14132685]
[1764120811378,11.01833916,140.09,140.01,17.85546972]
[1764120811747,103.3,140.08,140.0,7.14285714]
[1764120811975,102.6,140.07,140.0,7.14285714]
[1764120812264,103.3,140.07,140.0,7.14285714]
[1764120812871,103.3,140.07,139.99,7.14318989]
[1764120813359,3.18,140.06,139.99,7.14318989]
[1764120813571,7.14030703,140.05,139.98,7.14387769]
[1764120813777,7.14030703,140.05,139.97,7.14424208]
[1764120813778,128.29107461,140.05,139.97,7.14424208]
[1764120813960,0.7,140.04,139.97,7.14424208]
[1764120815043,0.7,140.04,139.89,7.1484738]
[1764120815044,16.308864,140.0,139.89,7.1484738]
[1764120815276,19.488864,139.99,139.89,7.8184738]
[1764120815570,20.188864,139.99,139.89,7.8184738]
[1764120815751,0.7,139.98,139.89,7.8184738]
[1764120816071,0.7,139.98,139.89,7.1484738]
[1764120816851,7.14438808,139.97,139.89,17.8711845]
[1764120817054,3.18,139.96,139.89,18.5411845]
[1764120819287,7.14540907,139.95,139.89,7.1484738]
[1764120819453,7.84540907,139.95,139.89,7.1484738]
[1764120820378,0.7,139.94,139.89,7.1484738]
[1764120820881,0.7,139.94,139.88,7.14898484]
[1764120821459,3.18,139.93,139.88,7.14898484]
[1764120821868,3.18,139.92,139.88,7.81898484]
[1764120822871,0.7,139.93,139.88,7.81898484]
[1764120823053,3.18,139.91,139.88,7.81898484]
[1764120823768,0.7,139.99,139.9,8.80994492]
[1764120823954,3.18,139.96,139.9,8.80994492]
[1764120824156,3.18,139.96,139.91,0.67]
[1764120824384,7.8434347,139.99,139.91,0.67]
[1764120824564,3.18,139.98,139.91,0.67]
[1764120824755,7.8434347,139.99,139.92,25.01429387]
[1764120824956,3.18,139.98,139.92,25.01429387]
[1764120825177,3.18,139.98,139.92,25.68429387]
[1764120826059,3.18,139.97,139.92,25.68429387]
[1764120826252,3.18,139.97,139.92,7.1469411]
[1764120826457,3.88,139.97,139.92,7.8169411]
[1764120826659,3.18,139.97,139.92,7.1469411]
[1764120826867,0.7,139.96,139.91,7.14745193]
[1764120827265,0.7,139.96,139.91,7.81745193]
[1764120828189,103.3,140.02,139.92,0.67]
[1764120828390,3.88,140.01,139.92,0.67]
[1764120828559,0.7,140.0,139.92,0.67]
[1764120828879,7.84328682,140.0,139.93,7.14643035]
[1764120829354,0.7,139.99,139.93,25.68250624]
[1764120829555,0.7,139.99,139.93,7.81643035]
[1764120829761,0.7,139.99,139.93,7.14643035]
[1764120830268,0.7,139.99,139.91,0.67]
[1764120830490,0.7,139.99,139.91,18.53862983]
[1764120830970,7.84349691,139.99,139.92,0.67]
[1764120831282,24.15236091,139.99,139.92,0.67]
[1764120831472,0.7,139.98,139.92,0.67]
[1764120831668,3.18,139.97,139.92,0.67]
[1764120831874,3.88,139.97,139.92,0.67]
[1764120832182,0.7,139.97,139.92,0.67]
[1764120832573,3.18,139.98,139.92,0.67]
[1764120832990,3.18,139.98,139.93,25.01250624]
[1764120833165,3.18,139.98,139.94,0.67]
[1764120833580,3.89,139.98,139.94,0.67]
[1764120834292,0.71,139.97,139.93,25.01250624]
[1764120834662,0.71,139.97,139.93,7.14643035]
[1764120835090,7.8544293,139.97,139.92,7.1469411]
[1764120835303,7.8544293,139.97,139.91,7.86734262]
[1764120835597,0.71,139.96,139.91,7.14734262]
[1764120835772,0.71,139.96,139.9,7.1475656]
[1764120836592,0.71,139.96,139.89,0.72]
[1764120836775,0.71,139.96,139.89,7.8682858]
[1764120837360,7.85529936,139.96,139.89,7.8682858]
[1764120837791,0.71,139.95,139.89,7.8682858]
[1764120837969,3.18,139.94,139.89,7.8682858]
[1764120838170,3.18,139.94,139.87,0.72]
[1764120838489,0.71,139.93,139.87,0.72]
[1764120839392,0.71,139.93,139.88,7.14898484]
[1764120839563,7.8564642,139.93,139.88,7.14898484]
[1764120839764,10.2680958,139.91,139.88,7.14898484]
[1764120839984,3.18,139.9,139.88,7.14898484]
[1764120840374,3.18,139.9,139.86,25.74422233]
[1764120840575,13.4480958,139.9,139.86,25.74422233]
[1764120840805,3.18,139.9,139.87,0.72]
[1764120841300,0.71,139.93,139.88,25.02144695]
[1764120841509,3.18,139.92,139.88,25.02144695]
[1764120841686,3.18,139.92,139.89,0.67]
[1764120841886,13.4480958,139.92,139.88,25.02144695]
[1764120842108,14.1280958,139.92,139.88,25.69144695]
[1764120842271,13.4480958,139.92,139.89,0.67]
[1764120842798,14.1280958,139.92,139.88,25.02144695]
[1764120843109,14.1280958,139.92,139.88,25.69144695]
[1764120844098,10.9480958,139.91,139.87,7.14933076]
[1764120844589,10.9480958,139.91,139.87,7.81933076]
[1764120847384,3.18,139.9,139.87,25.69307066]
[1764120848791,10.9480958,139.91,139.87,25.69307066]
[1764120848999,3.18,139.89,139.87,25.69307066]
[1764120849209,3.18,139.89,139.87,7.14933076]
[1764120849578,3.18,139.89,139.86,7.15000715]
[1764120849799,3.18,139.89,139.86,25.69502502]
[1764120850596,3.18,139.89,139.87,0.67]
[1764120850798,3.18,139.89,139.86,25.02502502]
[1764120850980,3.18,139.89,139.86,25.69502502]
[1764120853708,3.86,139.89,139.86,7.82000715]
[1764120853881,3.86,139.89,139.86,7.15000715]
[1764120854915,14.1280958,139.89,139.86,7.15000715]
[1764120855080,3.86,139.89,139.86,7.15000715]
[1764120855904,3.86,139.89,139.86,7.82000715]
[1764120856484,3.86,139.89,139.86,7.15000715]
[1764120857000,3.86,139.89,139.86,0.67]
[1764120857801,6.57867189,139.88,139.85,7.15051841]
[1764120858415,3.18,139.89,139.82,5.89867189]
[1764120858416,6.57867189,139.87,139.82,0.67]
[1764120858715,6.57867189,139.86,139.82,0.67]
[1764120858891,3.18,139.85,139.81,18.55099]
[1764120859091,3.18,139.85,139.82,0.67]
[1764120859699,3.18,139.87,139.83,5.89867189]
[1764120860195,3.18,139.87,139.84,0.67]
[1764120861198,3.18,139.87,139.85,7.15051841]
[1764120861504,3.15791057,139.9,139.86,0.67]
[1764120861719,102.6,139.91,139.86,3.14791057]
[1764120861885,3.18,139.9,139.86,3.14791057]
[1764120862084,3.18,139.9,139.87,0.67]
[1764120862308,102.6,139.98,139.88,8.80994492]
[1764120862611,2.47791057,139.96,139.9,2.47791057]
[1764120862821,2.47791057,139.95,139.9,0.67]
[1764120862982,3.15791057,139.95,139.9,0.67]
[1764120863187,3.15791057,139.95,139.91,7.14745193]
[1764120863694,2.47791057,139.93,139.87,18.55319485]
[1764120863898,0.71,139.97,139.91,2.47791057]
[1764120864104,6.36791057,139.96,139.9,2.47791057]
[1764120864317,3.18,139.95,139.9,3.15791057]
[1764120864816,3.89,139.95,139.91,0.68]
[1764120865408,3.89,139.95,139.92,7.1469411]
[1764120866000,0.71,139.97,139.93,0.68]
[1764120866214,3.18,139.96,139.93,0.68]
[1764120866512,3.18,139.96,139.92,25.69429387]
[1764120866716,3.18,139.96,139.92,25.01429387]
[1764120866903,3.18,139.95,139.93,0.68]
[1764120867400,3.18,139.95,139.94,7.14591967]
[1764120867596,0.71,139.98,139.94,7.14591967]
[1764120867597,6.60303658,139.98,139.94,7.14591967]
[1764120867907,3.18,139.97,139.94,7.82591967]
[1764120868721,3.89,139.97,139.94,7.82591967]
[1764120870685,6.60303658,139.96,139.92,7.14644419]
[1764120870885,6.60303658,139.96,139.91,7.14741752]
[1764120870886,5.89303658,139.95,139.91,7.14741752]
[1764120871196,5.89303658,139.94,139.91,0.68]
[1764120871417,9.07303658,139.93,139.89,0.68]
[1764120871710,3.18,139.93,139.89,7.82803172]
[1764120871915,3.18,139.93,139.9,0.68]
[1764120872625,3.18,139.93,139.89,7.14803172]
[1764120872824,9.78303658,139.93,139.89,7.82803172]
[1764120873022,9.78303658,139.93,139.89,7.14803172]
[1764120873217,9.78303658,139.93,139.89,7.82803172]
[1764120873713,9.78303658,139.93,139.9,0.68]
[1764120874018,3.18,139.93,139.9,0.68]
[1764120875936,3.18,139.93,139.91,7.14745193]
[1764120876128,0.71,139.93,139.91,7.14745193]
[1764120876318,3.18,139.92,139.91,7.14745193]
[1764120877805,3.18,139.92,139.9,7.82783696]
[1764120879035,3.18,139.92,139.91,0.68]
[1764120879427,3.18,139.92,139.9,0.68]
[1764120879853,6.60303658,139.91,139.86,0.68]
[1764120880145,5.89303658,139.88,139.83,0.68]
[1764120880310,9.07303658,139.87,139.81,30.92701125]
[1764120880509,5.89303658,139.86,139.81,25.71397467]
[1764120881017,6.60303658,139.86,139.82,0.68]
[1764120881515,6.60303658,139.86,139.83,7.15154115]
[1764120881907,6.60303658,139.85,139.82,7.15200195]
[1764120882110,6.60303658,139.85,139.8,7.83307582]
[1764120882313,5.89303658,139.86,139.81,0.68]
[1764120882512,6.60303658,139.86,139.81,0.68]
[1764120882727,0.71,139.85,139.81,0.68]
[1764120882920,6.60303658,139.85,139.81,0.68]
[1764120883538,6.60303658,139.85,139.81,7.83218235]
[1764120884113,3.18,139.84,139.81,7.83218235]
[1764120884642,0.71,139.83,139.79,0.68]
[1764120884840,0.71,139.85,139.8,0.68]
[1764120885155,3.18,139.84,139.8,6.57303658]
[1764120885313,3.18,139.84,139.78,25.03934753]
[1764120885314,9.07303658,139.84,139.78,25.03934753]
[1764120885510,3.89,139.84,139.79,0.68]
[1764120885818,6.60303658,139.84,139.8,7.15307582]
[1764120886012,3.18,139.83,139.8,30.92880195]
[1764120886237,3.18,139.84,139.81,0.68]
[1764120887732,3.18,139.84,139.82,7.15205263]
[1764120888553,3.89,139.84,139.82,7.15205263]
[1764120889349,3.18,139.84,139.81,7.15244588]
[1764120889548,0.71,139.83,139.81,7.15244588]
[1764120890963,5.65920991,139.84,139.81,7.15244588]
[1764120891160,3.89,139.84,139.81,7.15244588]
[1764120891851,3.18,139.84,139.81,0.68]
[1764120892034,3.89,139.84,139.79,3.15920991]
[1764120892235,3.89,139.84,139.8,0.68]
[1764120892633,5.65920991,139.88,139.82,2.47920991]
[1764120892832,103.31,139.89,139.84,2.47920991]
[1764120893042,3.18,139.88,139.84,2.47920991]
[1764120893266,3.85,139.88,139.85,0.68]
[1764120893965,3.85,139.88,139.86,7.15000715]
[1764120895065,3.85,139.88,139.85,7.83039081]
[1764120895776,105.07920991,139.89,139.85,7.83039081]
[1764120895985,3.18,139.88,139.86,0.67]
[1764120897047,3.85,139.88,139.85,25.02668684]
[1764120897450,3.85,139.88,139.85,25.69668684]
[1764120897868,3.18,139.88,139.85,25.69668684]
[1764120900273,2.47920991,139.92,139.86,3.14920991]
[1764120900567,3.18,139.89,139.86,0.67]
[1764120900746,3.18,139.88,139.87,7.14949596]
[1764120901281,3.18,139.88,139.87,7.84949596]
[1764120901670,3.18,139.88,139.87,0.7]
[1764120901877,3.18,139.88,139.86,7.84989299]
[1764120902598,3.85,139.88,139.86,7.14989299]
[1764120902991,6.32920991,139.88,139.85,7.15051841]
[1764120903183,2.47920991,139.9,139.86,0.7]
[1764120903382,105.74920991,139.91,139.86,3.17920991]
[1764120903694,3.18,139.9,139.86,3.17920991]